{"text_format":"3","workbook":"xlsx","n_sheets":1,"sheets":["Resultaträkning"],"not_rendered":{"defined_names":2},"read":"whole","date_system":"1900"}

{"sheet":"Resultaträkning","index":0,"n_rows":60,"n_cols":10,"rows_kept":60,"merged":[[9,1,9,9],[16,1,16,9],[24,1,24,9],[38,1,38,9],[43,1,43,9],[56,1,56,9]]}
[null,"Resultat Rapport"]
[]
[{"$nulls":3},"FÖREGÅENDE PERIOD ","BUDGET ","INNEVARANDE PERIOD ",null,"INNEVARANDE PERIOD SOM \nPROCENTANDEL AV FÖRSÄLJNINGEN ","PROCENTUELL FÖRÄNDRING JÄMFÖRT MED FÖREGÅENDE PERIOD ","PROCENTUELL FÖRÄNDRING JÄMFÖRT MED BUDGET "]
[null,"Försäljningsvinst"]
[null,"Produkt/tjänst 1",null,40,50,45,null,{"$f":"IFERROR(Försäljningsvinst[[#This Row],[Innevarande Period ]]/SUBTOTAL(109,Försäljningsvinst[[Innevarande Period ]]),0)","v":{"v":1,"d":"100.0%"}},{"$f":"IFERROR(Försäljningsvinst[[#This Row],[Innevarande Period ]]/Försäljningsvinst[[#This Row],[Föregående Period ]]-1,0)","v":{"v":0.125,"d":"12.5%"}},{"$f":"IFERROR(Försäljningsvinst[[#This Row],[Innevarande Period ]]/Försäljningsvinst[[#This Row],[Budget]]-1,0)","v":{"v":-0.09999999999999998,"d":"-10.0%"}}]
[null,"Produkt/tjänst 2",{"$nulls":5},{"$f":"IFERROR(Försäljningsvinst[[#This Row],[Innevarande Period ]]/SUBTOTAL(109,Försäljningsvinst[[Innevarande Period ]]),0)","v":0},{"$f":"IFERROR(Försäljningsvinst[[#This Row],[Innevarande Period ]]/Försäljningsvinst[[#This Row],[Föregående Period ]]-1,0)","v":0},{"$f":"IFERROR(Försäljningsvinst[[#This Row],[Innevarande Period ]]/Försäljningsvinst[[#This Row],[Budget]]-1,0)","v":0}]
[null,"Produkt/tjänst 3",{"$nulls":5},{"$f":"IFERROR(Försäljningsvinst[[#This Row],[Innevarande Period ]]/SUBTOTAL(109,Försäljningsvinst[[Innevarande Period ]]),0)","v":0},{"$f":"IFERROR(Försäljningsvinst[[#This Row],[Innevarande Period ]]/Försäljningsvinst[[#This Row],[Föregående Period ]]-1,0)","v":0},{"$f":"IFERROR(Försäljningsvinst[[#This Row],[Innevarande Period ]]/Försäljningsvinst[[#This Row],[Budget]]-1,0)","v":0}]
[null,"Produkt/tjänst 4",{"$nulls":5},{"$f":"IFERROR(Försäljningsvinst[[#This Row],[Innevarande Period ]]/SUBTOTAL(109,Försäljningsvinst[[Innevarande Period ]]),0)","v":0},{"$f":"IFERROR(Försäljningsvinst[[#This Row],[Innevarande Period ]]/Försäljningsvinst[[#This Row],[Föregående Period ]]-1,0)","v":0},{"$f":"IFERROR(Försäljningsvinst[[#This Row],[Innevarande Period ]]/Försäljningsvinst[[#This Row],[Budget]]-1,0)","v":0}]
[null,"Summa",null,{"$f":"SUBTOTAL(109,Försäljningsvinst[[Föregående Period ]])","v":40},{"$f":"SUBTOTAL(109,Försäljningsvinst[Budget])","v":50},{"$f":"SUBTOTAL(109,Försäljningsvinst[[Innevarande Period ]])","v":45},null,{"$f":"IFERROR(Försäljningsvinst[[#Totals],[Innevarande Period ]]/Försäljningsvinst[[#Totals],[Innevarande Period ]],0)","v":{"v":1,"d":"100.0%"}},{"$f":"IFERROR(Försäljningsvinst[[#Totals],[Innevarande Period ]]/Försäljningsvinst[[#Totals],[Föregående Period ]]-1,0)","v":{"v":0.125,"d":"12.5%"}},{"$f":"IFERROR(Försäljningsvinst[[#Totals],[Innevarande Period ]]/Försäljningsvinst[[#Totals],[Budget]]-1,0)","v":{"v":-0.09999999999999998,"d":"-10.0%"}}]
[]
[null,"Försäljningskostnader"]
[null,"Produkt/tjänst 1",null,null,2,3,null,{"$f":"IFERROR(Försäljningskostnader[[#This Row],[Innevarande Period ]]/SUBTOTAL(109,Försäljningsvinst[[Innevarande Period ]]),0)","v":{"v":0.06666666666666667,"d":"6.7%"}},{"$f":"IFERROR(Försäljningskostnader[[#This Row],[Innevarande Period ]]/Försäljningskostnader[[#This Row],[Föregående Period]]-1,0)","v":0},{"$f":"IFERROR(Försäljningskostnader[[#This Row],[Innevarande Period ]]/Försäljningskostnader[[#This Row],[Budget]]-1,0)","v":{"v":0.5,"d":"50.0%"}}]
[null,"Produkt/tjänst 2",null,null,5,3,null,{"$f":"IFERROR(Försäljningskostnader[[#This Row],[Innevarande Period ]]/SUBTOTAL(109,Försäljningsvinst[[Innevarande Period ]]),0)","v":{"v":0.06666666666666667,"d":"6.7%"}},{"$f":"IFERROR(Försäljningskostnader[[#This Row],[Innevarande Period ]]/Försäljningskostnader[[#This Row],[Föregående Period]]-1,0)","v":0},{"$f":"IFERROR(Försäljningskostnader[[#This Row],[Innevarande Period ]]/Försäljningskostnader[[#This Row],[Budget]]-1,0)","v":{"v":-0.4,"d":"-40.0%"}}]
[null,"Produkt/tjänst 3",{"$nulls":3},1,null,{"$f":"IFERROR(Försäljningskostnader[[#This Row],[Innevarande Period ]]/SUBTOTAL(109,Försäljningsvinst[[Innevarande Period ]]),0)","v":{"v":0.022222222222222223,"d":"2.2%"}},{"$f":"IFERROR(Försäljningskostnader[[#This Row],[Innevarande Period ]]/Försäljningskostnader[[#This Row],[Föregående Period]]-1,0)","v":0},{"$f":"IFERROR(Försäljningskostnader[[#This Row],[Innevarande Period ]]/Försäljningskostnader[[#This Row],[Budget]]-1,0)","v":0}]
[null,"Produkt/tjänst 4",{"$nulls":5},{"$f":"IFERROR(Försäljningskostnader[[#This Row],[Innevarande Period ]]/SUBTOTAL(109,Försäljningsvinst[[Innevarande Period ]]),0)","v":0},{"$f":"IFERROR(Försäljningskostnader[[#This Row],[Innevarande Period ]]/Försäljningskostnader[[#This Row],[Föregående Period]]-1,0)","v":0},{"$f":"IFERROR(Försäljningskostnader[[#This Row],[Innevarande Period ]]/Försäljningskostnader[[#This Row],[Budget]]-1,0)","v":0}]
[null,"Summa",null,{"$f":"SUBTOTAL(109,Försäljningskostnader[Föregående Period])","v":0},{"$f":"SUBTOTAL(109,Försäljningskostnader[Budget])","v":7},{"$f":"SUBTOTAL(109,Försäljningskostnader[[Innevarande Period ]])","v":7},null,{"$f":"IFERROR(Försäljningskostnader[[#Totals],[Innevarande Period ]]/SUBTOTAL(109,Försäljningsvinst[[Innevarande Period ]]),0)","v":{"v":0.15555555555555556,"d":"15.6%"}},{"$f":"IFERROR(Försäljningskostnader[[#Totals],[Innevarande Period ]]/Försäljningskostnader[[#Totals],[Föregående Period]]-1,0)","v":0},{"$f":"IFERROR(Försäljningskostnader[[#Totals],[Innevarande Period ]]/Försäljningskostnader[[#Totals],[Budget]]-1,0)","v":0}]
[]
[null,"Bruttovinst",null,{"$f":"SUM(Försäljningsvinst[[Föregående Period ]])-SUM(Försäljningskostnader[Föregående Period])","v":40},{"$f":"SUM(Försäljningsvinst[Budget])-SUM(Försäljningskostnader[Budget])","v":43},{"$f":"SUM(Försäljningsvinst[[Innevarande Period ]])-SUM(Försäljningskostnader[[Innevarande Period ]])","v":38},null,{"$f":"IFERROR(F18/SUBTOTAL(109,Försäljningsvinst[[Innevarande Period ]]),0)","v":{"v":0.8444444444444444,"d":"84.4%"}},{"$f":"IFERROR(F18/D18-1,0)","v":{"v":-0.050000000000000044,"d":"-5.0%"}},{"$f":"IFERROR(F18/E18-1,0)","v":{"v":-0.11627906976744184,"d":"-11.6%"}}]
[]
[null,"Verksamhetskostnader: försäljning och marknadsföring"]
[null,"Annonsering",null,null,22,19,null,{"$f":"IFERROR(Försäljning_och_marknadsföring[[#This Row],[Innevarande Period ]]/SUBTOTAL(109,Försäljningsvinst[[Innevarande Period ]]),0)","v":{"v":0.4222222222222222,"d":"42.2%"}},{"$f":"IFERROR(Försäljning_och_marknadsföring[[#This Row],[Innevarande Period ]]/Försäljning_och_marknadsföring[[#This Row],[Föregående Period]]-1,0)","v":0},{"$f":"IFERROR(Försäljning_och_marknadsföring[[#This Row],[Innevarande Period ]]/Försäljning_och_marknadsföring[[#This Row],[Budget]]-1,0)","v":{"v":-0.13636363636363635,"d":"-13.6%"}}]
[null,"Direktmarknadsföring",{"$nulls":5},{"$f":"IFERROR(Försäljning_och_marknadsföring[[#This Row],[Innevarande Period ]]/SUBTOTAL(109,Försäljningsvinst[[Innevarande Period ]]),0)","v":0},{"$f":"IFERROR(Försäljning_och_marknadsföring[[#This Row],[Innevarande Period ]]/Försäljning_och_marknadsföring[[#This Row],[Föregående Period]]-1,0)","v":0},{"$f":"IFERROR(Försäljning_och_marknadsföring[[#This Row],[Innevarande Period ]]/Försäljning_och_marknadsföring[[#This Row],[Budget]]-1,0)","v":0}]
[null,"Övriga utgifter (anges)",{"$nulls":5},{"$f":"IFERROR(Försäljning_och_marknadsföring[[#This Row],[Innevarande Period ]]/SUBTOTAL(109,Försäljningsvinst[[Innevarande Period ]]),0)","v":0},{"$f":"IFERROR(Försäljning_och_marknadsföring[[#This Row],[Innevarande Period ]]/Försäljning_och_marknadsföring[[#This Row],[Föregående Period]]-1,0)","v":0},{"$f":"IFERROR(Försäljning_och_marknadsföring[[#This Row],[Innevarande Period ]]/Försäljning_och_marknadsföring[[#This Row],[Budget]]-1,0)","v":0}]
[null,"Summa",null,{"$f":"SUBTOTAL(109,Försäljning_och_marknadsföring[Föregående Period])","v":0},{"$f":"SUBTOTAL(109,Försäljning_och_marknadsföring[Budget])","v":22},{"$f":"SUBTOTAL(109,Försäljning_och_marknadsföring[[Innevarande Period ]])","v":19},null,{"$f":"IFERROR(Försäljning_och_marknadsföring[[#Totals],[Innevarande Period ]]/SUBTOTAL(109,Försäljningsvinst[[Innevarande Period ]]),0)","v":{"v":0.4222222222222222,"d":"42.2%"}},{"$f":"IFERROR(Försäljning_och_marknadsföring[[#Totals],[Innevarande Period ]]/Försäljning_och_marknadsföring[[#Totals],[Föregående Period]]-1,0)","v":0},{"$f":"IFERROR(Försäljning_och_marknadsföring[[#Totals],[Innevarande Period ]]/Försäljning_och_marknadsföring[[#Totals],[Budget]]-1,0)","v":{"v":-0.13636363636363635,"d":"-13.6%"}}]
[]
[null,"Verksamhetskostnader: allmänna och administrativa"]
[null,"Löner",null,null,56,51,null,{"$f":"IFERROR(Allmänna_och_administrativa[[#This Row],[Innevarande Period ]]/SUBTOTAL(109,Försäljningsvinst[[Innevarande Period ]]),0)","v":{"v":1.1333333333333333,"d":"113.3%"}},{"$f":"IFERROR(Allmänna_och_administrativa[[#This Row],[Innevarande Period ]]/Allmänna_och_administrativa[[#This Row],[Föregående Period]]-1,0)","v":0},{"$f":"IFERROR(Allmänna_och_administrativa[[#This Row],[Innevarande Period ]]/Allmänna_och_administrativa[[#This Row],[Budget]]-1,0)","v":{"v":-0.0892857142857143,"d":"-8.9%"}}]
[null,"Externa tjänster",{"$nulls":5},{"$f":"IFERROR(Allmänna_och_administrativa[[#This Row],[Innevarande Period ]]/SUBTOTAL(109,Försäljningsvinst[[Innevarande Period ]]),0)","v":0},{"$f":"IFERROR(Allmänna_och_administrativa[[#This Row],[Innevarande Period ]]/Allmänna_och_administrativa[[#This Row],[Föregående Period]]-1,0)","v":0},{"$f":"IFERROR(Allmänna_och_administrativa[[#This Row],[Innevarande Period ]]/Allmänna_och_administrativa[[#This Row],[Budget]]-1,0)","v":0}]
[null,"Material",{"$nulls":5},{"$f":"IFERROR(Allmänna_och_administrativa[[#This Row],[Innevarande Period ]]/SUBTOTAL(109,Försäljningsvinst[[Innevarande Period ]]),0)","v":0},{"$f":"IFERROR(Allmänna_och_administrativa[[#This Row],[Innevarande Period ]]/Allmänna_och_administrativa[[#This Row],[Föregående Period]]-1,0)","v":0},{"$f":"IFERROR(Allmänna_och_administrativa[[#This Row],[Innevarande Period ]]/Allmänna_och_administrativa[[#This Row],[Budget]]-1,0)","v":0}]
[null,"Måltider och nöjen",{"$nulls":5},{"$f":"IFERROR(Allmänna_och_administrativa[[#This Row],[Innevarande Period ]]/SUBTOTAL(109,Försäljningsvinst[[Innevarande Period ]]),0)","v":0},{"$f":"IFERROR(Allmänna_och_administrativa[[#This Row],[Innevarande Period ]]/Allmänna_och_administrativa[[#This Row],[Föregående Period]]-1,0)","v":0},{"$f":"IFERROR(Allmänna_och_administrativa[[#This Row],[Innevarande Period ]]/Allmänna_och_administrativa[[#This Row],[Budget]]-1,0)","v":0}]
[null,"Hyra",{"$nulls":5},{"$f":"IFERROR(Allmänna_och_administrativa[[#This Row],[Innevarande Period ]]/SUBTOTAL(109,Försäljningsvinst[[Innevarande Period ]]),0)","v":0},{"$f":"IFERROR(Allmänna_och_administrativa[[#This Row],[Innevarande Period ]]/Allmänna_och_administrativa[[#This Row],[Föregående Period]]-1,0)","v":0},{"$f":"IFERROR(Allmänna_och_administrativa[[#This Row],[Innevarande Period ]]/Allmänna_och_administrativa[[#This Row],[Budget]]-1,0)","v":0}]
[null,"Telefon",{"$nulls":5},{"$f":"IFERROR(Allmänna_och_administrativa[[#This Row],[Innevarande Period ]]/SUBTOTAL(109,Försäljningsvinst[[Innevarande Period ]]),0)","v":0},{"$f":"IFERROR(Allmänna_och_administrativa[[#This Row],[Innevarande Period ]]/Allmänna_och_administrativa[[#This Row],[Föregående Period]]-1,0)","v":0},{"$f":"IFERROR(Allmänna_och_administrativa[[#This Row],[Innevarande Period ]]/Allmänna_och_administrativa[[#This Row],[Budget]]-1,0)","v":0}]
[null,"El,  vatten och avfallshantering",{"$nulls":5},{"$f":"IFERROR(Allmänna_och_administrativa[[#This Row],[Innevarande Period ]]/SUBTOTAL(109,Försäljningsvinst[[Innevarande Period ]]),0)","v":0},{"$f":"IFERROR(Allmänna_och_administrativa[[#This Row],[Innevarande Period ]]/Allmänna_och_administrativa[[#This Row],[Föregående Period]]-1,0)","v":0},{"$f":"IFERROR(Allmänna_och_administrativa[[#This Row],[Innevarande Period ]]/Allmänna_och_administrativa[[#This Row],[Budget]]-1,0)","v":0}]
[null,"Avskrivningar",{"$nulls":5},{"$f":"IFERROR(Allmänna_och_administrativa[[#This Row],[Innevarande Period ]]/SUBTOTAL(109,Försäljningsvinst[[Innevarande Period ]]),0)","v":0},{"$f":"IFERROR(Allmänna_och_administrativa[[#This Row],[Innevarande Period ]]/Allmänna_och_administrativa[[#This Row],[Föregående Period]]-1,0)","v":0},{"$f":"IFERROR(Allmänna_och_administrativa[[#This Row],[Innevarande Period ]]/Allmänna_och_administrativa[[#This Row],[Budget]]-1,0)","v":0}]
[null,"Försäkring",{"$nulls":5},{"$f":"IFERROR(Allmänna_och_administrativa[[#This Row],[Innevarande Period ]]/SUBTOTAL(109,Försäljningsvinst[[Innevarande Period ]]),0)","v":0},{"$f":"IFERROR(Allmänna_och_administrativa[[#This Row],[Innevarande Period ]]/Allmänna_och_administrativa[[#This Row],[Föregående Period]]-1,0)","v":0},{"$f":"IFERROR(Allmänna_och_administrativa[[#This Row],[Innevarande Period ]]/Allmänna_och_administrativa[[#This Row],[Budget]]-1,0)","v":0}]
[null,"Reparationer och underhåll",{"$nulls":5},{"$f":"IFERROR(Allmänna_och_administrativa[[#This Row],[Innevarande Period ]]/SUBTOTAL(109,Försäljningsvinst[[Innevarande Period ]]),0)","v":0},{"$f":"IFERROR(Allmänna_och_administrativa[[#This Row],[Innevarande Period ]]/Allmänna_och_administrativa[[#This Row],[Föregående Period]]-1,0)","v":0},{"$f":"IFERROR(Allmänna_och_administrativa[[#This Row],[Innevarande Period ]]/Allmänna_och_administrativa[[#This Row],[Budget]]-1,0)","v":0}]
[null,"Övriga utgifter (anges)",{"$nulls":5},{"$f":"IFERROR(Allmänna_och_administrativa[[#This Row],[Innevarande Period ]]/SUBTOTAL(109,Försäljningsvinst[[Innevarande Period ]]),0)","v":0},{"$f":"IFERROR(Allmänna_och_administrativa[[#This Row],[Innevarande Period ]]/Allmänna_och_administrativa[[#This Row],[Föregående Period]]-1,0)","v":0},{"$f":"IFERROR(Allmänna_och_administrativa[[#This Row],[Innevarande Period ]]/Allmänna_och_administrativa[[#This Row],[Budget]]-1,0)","v":0}]
[null,"Summa",null,{"$f":"SUBTOTAL(109,Allmänna_och_administrativa[Föregående Period])","v":0},{"$f":"SUBTOTAL(109,Allmänna_och_administrativa[Budget])","v":56},{"$f":"SUBTOTAL(109,Allmänna_och_administrativa[[Innevarande Period ]])","v":51},null,{"$f":"IFERROR(Allmänna_och_administrativa[[#Totals],[Innevarande Period ]]/SUBTOTAL(109,Försäljningsvinst[[Innevarande Period ]]),0)","v":{"v":1.1333333333333333,"d":"113.3%"}},{"$f":"IFERROR(Allmänna_och_administrativa[[#Totals],[Innevarande Period ]]/Allmänna_och_administrativa[[#Totals],[Föregående Period]]-1,0)","v":0},{"$f":"IFERROR(Allmänna_och_administrativa[[#Totals],[Innevarande Period ]]/Allmänna_och_administrativa[[#Totals],[Budget]]-1,0)","v":{"v":-0.0892857142857143,"d":"-8.9%"}}]
[]
[null,"Verksamhetskostnad: övrig"]
[null,"Övrig driftskostnad 1",null,null,10,null,null,{"$f":"IFERROR(Kategorin_övrigt_driftskostnader[[#This Row],[Innevarande Period ]]/SUBTOTAL(109,Försäljningsvinst[[Innevarande Period ]]),0)","v":0},{"$f":"IFERROR(Kategorin_övrigt_driftskostnader[[#This Row],[Innevarande Period ]]/Kategorin_övrigt_driftskostnader[[#This Row],[Föregående Period]]-1,0)","v":0},{"$f":"IFERROR(Kategorin_övrigt_driftskostnader[[#This Row],[Innevarande Period ]]/Kategorin_övrigt_driftskostnader[[#This Row],[Budget]]-1,0)","v":{"v":-1,"d":"-100.0%"}}]
[null,"Övrig driftskostnad 2",{"$nulls":5},{"$f":"IFERROR(Kategorin_övrigt_driftskostnader[[#This Row],[Innevarande Period ]]/SUBTOTAL(109,Försäljningsvinst[[Innevarande Period ]]),0)","v":0},{"$f":"IFERROR(Kategorin_övrigt_driftskostnader[[#This Row],[Innevarande Period ]]/Kategorin_övrigt_driftskostnader[[#This Row],[Föregående Period]]-1,0)","v":0},{"$f":"IFERROR(Kategorin_övrigt_driftskostnader[[#This Row],[Innevarande Period ]]/Kategorin_övrigt_driftskostnader[[#This Row],[Budget]]-1,0)","v":0}]
[null,"Summa",null,{"$f":"SUBTOTAL(109,Kategorin_övrigt_driftskostnader[Föregående Period])","v":0},{"$f":"SUBTOTAL(109,Kategorin_övrigt_driftskostnader[Budget])","v":10},{"$f":"SUBTOTAL(109,Kategorin_övrigt_driftskostnader[[Innevarande Period ]])","v":0},null,{"$f":"IFERROR(Kategorin_övrigt_driftskostnader[[#Totals],[Innevarande Period ]]/SUBTOTAL(109,Försäljningsvinst[[Innevarande Period ]]),0)","v":0},{"$f":"IFERROR(Kategorin_övrigt_driftskostnader[[#Totals],[Innevarande Period ]]/Kategorin_övrigt_driftskostnader[[#Totals],[Föregående Period]]-1,0)","v":0},{"$f":"IFERROR(Kategorin_övrigt_driftskostnader[[#Totals],[Innevarande Period ]]/Kategorin_övrigt_driftskostnader[[#Totals],[Budget]]-1,0)","v":{"v":-1,"d":"-100.0%"}}]
[]
[null,"Summa driftskostnader",null,{"$f":"SUM(Försäljning_och_marknadsföring[Föregående Period],Allmänna_och_administrativa[Föregående Period],Kategorin_övrigt_driftskostnader[Föregående Period])","v":0},{"$f":"SUM(Försäljning_och_marknadsföring[Budget],Allmänna_och_administrativa[Budget],Kategorin_övrigt_driftskostnader[Budget])","v":88},{"$f":"SUM(Försäljning_och_marknadsföring[[Innevarande Period ]],Allmänna_och_administrativa[[Innevarande Period ]],Kategorin_övrigt_driftskostnader[[Innevarande Period ]])","v":70},null,{"$f":"IFERROR(F45/SUBTOTAL(109,Försäljningsvinst[[Innevarande Period ]]),0)","v":{"v":1.5555555555555556,"d":"155.6%"}},{"$f":"IFERROR(F45/D45-1,0)","v":0},{"$f":"IFERROR(F45/E45-1,0)","v":{"v":-0.20454545454545459,"d":"-20.5%"}}]
[]
[null,"Inkomster från verksamheten",null,{"$f":"D18-D45","v":40},{"$f":"E18-E45","v":-45},{"$f":"F18-F45","v":-32},null,{"$f":"IFERROR(F47/SUBTOTAL(109,Försäljningsvinst[[Innevarande Period ]]),0)","v":{"v":-0.7111111111111111,"d":"-71.1%"}},{"$f":"IFERROR(IF(D47=F47,0,IF(F47>D47,ABS((F47/D47)-1),IF(AND(F47<D47,D47<0),-((F47/D47)-1),(F47/D47)-1))),0)","v":{"v":-1.8,"d":"-180.0%"}},{"$f":"IFERROR(IF(E47=F47,0,IF(F47>E47,ABS((F47/E47)-1),IF(AND(F47<E47,E47<0),-((F47/E47)-1),(F47/E47)-1))),0)","v":{"v":0.28888888888888886,"d":"28.9%"}}]
[]
[null,"Övriga inkomster",{"$nulls":5},{"$f":"IFERROR(F49/SUBTOTAL(109,Försäljningsvinst[[Innevarande Period ]]),0)","v":0},{"$f":"IFERROR(F49/D49-1,0)","v":0},{"$f":"IFERROR(F49/E49-1,0)","v":0}]
[]
[null,"Moms"]
[null,"Inkomstskatt",null,null,32,30,null,{"$f":"IFERROR(Moms[[#This Row],[Innevarande Period ]]/SUBTOTAL(109,Försäljningsvinst[[Innevarande Period ]]),0)","v":{"v":0.6666666666666666,"d":"66.7%"}},{"$f":"IFERROR(Moms[[#This Row],[Innevarande Period ]]/Moms[[#This Row],[Föregående Period]]-1,0)","v":0},{"$f":"IFERROR(Moms[[#This Row],[Innevarande Period ]]/Moms[[#This Row],[Budget]]-1,0)","v":{"v":-0.0625,"d":"-6.3%"}}]
[null,"Arbetsgivaravgifter",{"$nulls":5},{"$f":"IFERROR(Moms[[#This Row],[Innevarande Period ]]/SUBTOTAL(109,Försäljningsvinst[[Innevarande Period ]]),0)","v":0},{"$f":"IFERROR(Moms[[#This Row],[Innevarande Period ]]/Moms[[#This Row],[Föregående Period]]-1,0)","v":0},{"$f":"IFERROR(Moms[[#This Row],[Innevarande Period ]]/Moms[[#This Row],[Budget]]-1,0)","v":0}]
[null,"Fastighetsskatt",{"$nulls":5},{"$f":"IFERROR(Moms[[#This Row],[Innevarande Period ]]/SUBTOTAL(109,Försäljningsvinst[[Innevarande Period ]]),0)","v":0},{"$f":"IFERROR(Moms[[#This Row],[Innevarande Period ]]/Moms[[#This Row],[Föregående Period]]-1,0)","v":0},{"$f":"IFERROR(Moms[[#This Row],[Innevarande Period ]]/Moms[[#This Row],[Budget]]-1,0)","v":0}]
[null,"Övriga skatter (anges)",{"$nulls":5},{"$f":"IFERROR(Moms[[#This Row],[Innevarande Period ]]/SUBTOTAL(109,Försäljningsvinst[[Innevarande Period ]]),0)","v":0},{"$f":"IFERROR(Moms[[#This Row],[Innevarande Period ]]/Moms[[#This Row],[Föregående Period]]-1,0)","v":0},{"$f":"IFERROR(Moms[[#This Row],[Innevarande Period ]]/Moms[[#This Row],[Budget]]-1,0)","v":0}]
[null,"Summa",null,{"$f":"SUBTOTAL(109,Moms[Föregående Period])","v":0},{"$f":"SUBTOTAL(109,Moms[Budget])","v":32},{"$f":"SUBTOTAL(109,Moms[[Innevarande Period ]])","v":30},null,{"$f":"IFERROR(Moms[[#Totals],[Innevarande Period ]]/SUBTOTAL(109,Försäljningsvinst[[Innevarande Period ]]),0)","v":{"v":0.6666666666666666,"d":"66.7%"}},{"$f":"IFERROR(Moms[[#Totals],[Innevarande Period ]]/Moms[[#Totals],[Föregående Period]]-1,0)","v":0},{"$f":"IFERROR(Moms[[#Totals],[Innevarande Period ]]/Moms[[#Totals],[Budget]]-1,0)","v":{"v":-0.0625,"d":"-6.3%"}}]
[]
[null,"Nettovinst",null,{"$f":"D47+D49-Moms[[#Totals],[Föregående Period]]","v":40},{"$f":"E47+E49-Moms[[#Totals],[Föregående Period]]","v":-45},{"$f":"F47+F49-Moms[[#Totals],[Föregående Period]]","v":-32},null,{"$f":"IFERROR(F58/SUBTOTAL(109,Försäljningsvinst[[Innevarande Period ]]),0)","v":{"v":-0.7111111111111111,"d":"-71.1%"}},{"$f":"IFERROR(IF(D58=F58,0,IF(F58>D58,ABS((F58/D58)-1),IF(AND(F58<D58,D58<0),-((F58/D58)-1),(F58/D58)-1))),0)","v":{"v":-1.8,"d":"-180.0%"}},{"$f":"IFERROR(IF(E58=F58,0,IF(F58>E58,ABS((F58/E58)-1),IF(AND(F58<E58,E58<0),-((F58/E58)-1),(F58/E58)-1))),0)","v":{"v":0.28888888888888886,"d":"28.9%"}}]
[null,"Bruttomarginal",null,{"$f":"D18/SUM(Försäljningsvinst[[Föregående Period ]])","v":{"v":1,"d":"100.0%"}},{"$f":"E18/SUM(Försäljningsvinst[Budget])","v":{"v":0.86,"d":"86.0%"}},{"$f":"F18/SUM(Försäljningsvinst[[Innevarande Period ]])","v":{"v":0.8444444444444444,"d":"84.4%"}}]
[null,"Lönsamhetstal",null,{"$f":"D58/SUM(Försäljningsvinst[[Föregående Period ]])","v":{"v":1,"d":"100.0%"}},{"$f":"E58/SUM(Försäljningsvinst[Budget])","v":{"v":-0.9,"d":"-90.0%"}},{"$f":"F58/SUM(Försäljningsvinst[[Innevarande Period ]])","v":{"v":-0.7111111111111111,"d":"-71.1%"}}]